Workbook

Sheet Sheet1
A2: Assumptions
C3: Valuation Year | F3: 3
C4: Terminal Year | F4: 11
C6: Discount Rate | F6: Period | G6: Rate | H6: Inflation
F7: 1 | G7: =H7+2% -> 0.04 | H7: 0.02
F8: 5 | G8: =H8+2% -> 0.04 | H8: 0.02
F9: 7 | G9: 0.06 | H9: 0.04
F10: 9 | G10: 0.05 | H10: 0.03
C12: Middle Period Cash Flow in Zero | F12: 100
C13: Terminal Growth | F13: =H10 -> 0.03
A15: Model
F16: 1 | G16: =F16+1 -> 2 | H16: =G16+1 -> 3 | I16: 4 | J16: 5 | K16: 6 | L16: 7 | M16: 8 | N16: 9 | O16: 10 | P16: 11 | Q16: 12 | R16: 13 | S16: 14 | T16: 15 | U16: 16
D18: Valuation Year | F18: =F16=$F$3 -> FALSE | G18: =G16=$F$3 -> FALSE | H18: TRUE | I18: FALSE | J18: FALSE | K18: FALSE | L18: FALSE | M18: FALSE | N18: FALSE | O18: FALSE | P18: FALSE | Q18: FALSE | R18: FALSE | S18: FALSE | T18: FALSE | U18: FALSE
D19: Valuation Period | F19: =AND(F16>=$F$3,F16<=$F$4) -> FALSE | G19: =AND(G16>=$F$3,G16<=$F$4) -> FALSE | H19: TRUE | I19: TRUE | J19: TRUE | K19: TRUE | L19: TRUE | M19: TRUE | N19: TRUE | O19: TRUE | P19: TRUE | Q19: FALSE | R19: FALSE | S19: FALSE | T19: FALSE | U19: FALSE
D20: Terminal Period | F20: =F16=$F$4 -> FALSE | G20: =G16=$F$4 -> FALSE | H20: FALSE | I20: FALSE | J20: FALSE | K20: FALSE | L20: FALSE | M20: FALSE | N20: FALSE | O20: FALSE | P20: TRUE | Q20: FALSE | R20: FALSE | S20: FALSE | T20: FALSE | U20: FALSE
D22: Inflation Rate | F22: =LOOKUP(F16,$F$7:$F$10,$H$7:$H$10) -> 0.02 | G22: =LOOKUP(G16,$F$7:$F$10,$H$7:$H$10) -> 0.02 | H22: 0.02 | I22: 0.02 | J22: 0.02 | K22: 0.02 | L22: 0.04 | M22: 0.04 | N22: 0.03 | O22: 0.03 | P22: 0.03 | Q22: 0.03 | R22: 0.03 | S22: 0.03 | T22: 0.03 | U22: 0.03
D23: Index | E23: 1 | F23: =E23*(1+F22) -> 1.02 | G23: =F23*(1+G22) -> 1.0404 | H23: 1.061208 | I23: 1.08243216 | J23: 1.104080803 | K23: 1.126162419 | L23: 1.171208916 | M23: 1.218057273 | N23: 1.254598991 | O23: 1.292236961 | P23: 1.331004069 | Q23: 1.370934191 | R23: 1.412062217 | S23: 1.454424084 | T23: 1.498056806 | U23: 1.54299851
D24: Middle Period Cash Flow | E24: =$F$12 -> 100 | F24: =$E$24*F23 -> 102 | G24: =$E$24*G23 -> 104.04 | H24: 106.1208 | I24: 108.243216 | J24: 110.4080803 | K24: 112.6162419 | L24: 117.1208916 | M24: 121.8057273 | N24: 125.4598991 | O24: 129.2236961 | P24: 133.1004069 | Q24: 137.0934191 | R24: 141.2062217 | S24: 145.4424084 | T24: 149.8056806 | U24: 154.299851
D26: Discount Factor | F26: =LOOKUP(F16,$F$7:$F$10,$G$7:$G$10)*F19 -> 0 | G26: =LOOKUP(G16,$F$7:$F$10,$G$7:$G$10)*G19 -> 0 | H26: 0.04 | I26: 0.04 | J26: 0.04 | K26: 0.04 | L26: 0.06 | M26: 0.06 | N26: 0.05 | O26: 0.05 | P26: 0.05 | Q26: 0 | R26: 0 | S26: 0 | T26: 0 | U26: 0
D27: Full Year Discount Factor | E27: 1 | F27: =E27*(1+F26*F19) -> 1 | G27: =F27*(1+G26*G19) -> 1 | H27: 1.04 | I27: 1.0816 | J27: =I27*(1+J26*J19) -> 1.124864 | K27: 1.16985856 | L27: 1.240050074 | M27: 1.314453078 | N27: 1.380175732 | O27: 1.449184519 | P27: 1.521643744 | Q27: 1.521643744 | R27: 1.521643744 | S27: 1.521643744 | T27: 1.521643744 | U27: 1.521643744
D29: Prior Year Discount Factor | F29: =E26*E19 -> 0 | G29: =F26*F19 -> 0 | H29: 0 | I29: 0.04 | J29: 0.04 | K29: 0.04 | L29: 0.04 | M29: 0.06 | N29: 0.06 | O29: 0.05 | P29: 0.05 | Q29: 0.05 | R29: 0 | S29: 0 | T29: 0 | U29: 0
D30: Weighed Rate | F30: =F26*0.5+F29*0.5 -> 0 | G30: =G26*0.5+G29*0.5 -> 0 | H30: 0.02 | I30: 0.04 | J30: 0.04 | K30: 0.04 | L30: 0.05 | M30: 0.06 | N30: 0.055 | O30: 0.05 | P30: 0.05 | Q30: 0.025 | R30: 0 | S30: 0 | T30: 0 | U30: 0
D31: 1/2 Year Discount Factor | E31: 1 | F31: =E31*(1+(F29*0.5+F26*5)*F19) -> 1 | G31: =F31*(1+(G29*0.5+G26*5)*G19) -> 1 | H31: =G31*(1+(H29*0.5+H26*5)*H19) -> 1.2 | I31: =H31*(1+(I29*0.5+I26*0.5)*I19) -> 1.248 | J31: =I31*(1+(J29*0.5+J26*0.5)*J19) -> 1.29792 | K31: 1.3498368 | L31: 1.41732864 | M31: 1.502368358 | N31: 1.584998618 | O31: 1.664248549 | P31: 1.747460976 | Q31: 1.747460976 | R31: 1.747460976 | S31: 1.747460976 | T31: 1.747460976 | U31: 1.747460976
D33: Final Period Cash Flow | F33: =F24*(1+F22*0.5)*(1+$F$13)*F20/(F26-$F$13) -> 0 | G33: =G24*(1+G22*0.5)*(1+$F$13)*G20/(G26-$F$13) -> 0 | H33: 0 | I33: 0 | J33: 0 | K33: 0 | L33: 0 | M33: 0 | N33: 0 | O33: 0 | P33: 6957.491022 | Q33: 0 | R33: 0 | S33: 0 | T33: 0 | U33: 0
D35: Cash Flow in Explicit Period | E35: =SUMPRODUCT(F24:U24*F19:U19/F31:U31) -> 740.3423697
D36: Cash Flow in Terminal Period | E36: =SUMPRODUCT(F33:U33/F27:U27) -> 4572.352134

Sheet Sheet2

Sheet Sheet3
